{"text_format":"1","workbook":"xlsx","n_sheets":3,"sheets":["Voorraadlijst magazijn","Voorraadpickoverzicht","Opslaglocatie opzoeken"],"not_rendered":{"charts":0,"images":0,"macros":1,"external_links":0,"defined_names":5,"comments":0,"pivot_tables":0},"unopened":[],"bounds":{"document_bytes":16777216,"sheet_cells":100000,"rows_first":2000,"rows_last":500,"rows_between":2000,"halvings":0,"cell_chars":16384,"cell_head_chars":4096},"cells_cut":0,"cells_raw":0,"read":"whole","date_system":"1900"}

{"sheet":"Voorraadlijst magazijn","index":0,"n_rows":15,"n_cols":11,"rows_kept":15,"cut":false,"hidden":false,"merged":[]}
[null,"VOORRAADLIJST MAGAZIJN"]
[null,"TOTALE VOORRAADWAARDE:","VOORRAADARTIKELEN:","AANTAL OPSLAGLOCATIES:","VOORRAADPICKOVERZICHT","OPSLAGLOCATIE OPZOEKEN"]
[null,{"$f":"SUM(Voorraadlijst[VOORRAADWAARDE])","v":4649},{"$f":"COUNTA(Voorraadlijst[BESCHRIJVING])","v":11},{"$f":"SUMPRODUCT((1/COUNTIF(Voorraadlijst[OPSLAGLOCATIENR],Voorraadlijst[OPSLAGLOCATIENR]&\"\")))","v":6}]
[null,"SKU","BESCHRIJVING","OPSLAGLOCATIENR","LOCATIE","EENHEID","HOEV","BIJBESTELHOEV","KOSTEN","VOORRAADWAARDE","BIJBESTELLEN"]
[null,"SP7875","Artikel 1","T345",{"$f":"IFERROR(VLOOKUP(Voorraadlijst[[#This Row],[OPSLAGLOCATIENR]],OpslaglocatieOpzoeken[],3,FALSE),\"\")","v":"Rij 2, vak 1"},"Per stuk",20,10,30,{"$f":"Voorraadlijst[[#This Row],[HOEV]]*Voorraadlijst[[#This Row],[KOSTEN]]","v":600},{"$f":"IFERROR(IF(Voorraadlijst[[#This Row],[HOEV]]<=Voorraadlijst[[#This Row],[BIJBESTELHOEV]],1,0),0)","v":0}]
[null,"TR87680","Artikel 2","T345",{"$f":"IFERROR(VLOOKUP(Voorraadlijst[[#This Row],[OPSLAGLOCATIENR]],OpslaglocatieOpzoeken[],3,FALSE),\"\")","v":"Rij 2, vak 1"},"Per stuk",30,15,40,{"$f":"Voorraadlijst[[#This Row],[HOEV]]*Voorraadlijst[[#This Row],[KOSTEN]]","v":1200},{"$f":"IFERROR(IF(Voorraadlijst[[#This Row],[HOEV]]<=Voorraadlijst[[#This Row],[BIJBESTELHOEV]],1,0),0)","v":0}]
[null,"MK676554","Artikel 3","T5789",{"$f":"IFERROR(VLOOKUP(Voorraadlijst[[#This Row],[OPSLAGLOCATIENR]],OpslaglocatieOpzoeken[],3,FALSE),\"\")","v":"Rij 1, vak 1"},"Per stuk",10,5,5,{"$f":"Voorraadlijst[[#This Row],[HOEV]]*Voorraadlijst[[#This Row],[KOSTEN]]","v":50},{"$f":"IFERROR(IF(Voorraadlijst[[#This Row],[HOEV]]<=Voorraadlijst[[#This Row],[BIJBESTELHOEV]],1,0),0)","v":0}]
[null,"YE98767","Artikel 4","T9876",{"$f":"IFERROR(VLOOKUP(Voorraadlijst[[#This Row],[OPSLAGLOCATIENR]],OpslaglocatieOpzoeken[],3,FALSE),\"\")","v":"Rij 3, vak 2"},"Doos (10 stuks)",40,10,15,{"$f":"Voorraadlijst[[#This Row],[HOEV]]*Voorraadlijst[[#This Row],[KOSTEN]]","v":600},{"$f":"IFERROR(IF(Voorraadlijst[[#This Row],[HOEV]]<=Voorraadlijst[[#This Row],[BIJBESTELHOEV]],1,0),0)","v":0}]
[null,"XR23423","Artikel 5","T098",{"$f":"IFERROR(VLOOKUP(Voorraadlijst[[#This Row],[OPSLAGLOCATIENR]],OpslaglocatieOpzoeken[],3,FALSE),\"\")","v":"Rij 3, vak 1"},"Per stuk",12,10,26,{"$f":"Voorraadlijst[[#This Row],[HOEV]]*Voorraadlijst[[#This Row],[KOSTEN]]","v":312},{"$f":"IFERROR(IF(Voorraadlijst[[#This Row],[HOEV]]<=Voorraadlijst[[#This Row],[BIJBESTELHOEV]],1,0),0)","v":0}]
[null,"PW98762","Artikel 6","T345",{"$f":"IFERROR(VLOOKUP(Voorraadlijst[[#This Row],[OPSLAGLOCATIENR]],OpslaglocatieOpzoeken[],3,FALSE),\"\")","v":"Rij 2, vak 1"},"Per stuk",7,10,50,{"$f":"Voorraadlijst[[#This Row],[HOEV]]*Voorraadlijst[[#This Row],[KOSTEN]]","v":350},{"$f":"IFERROR(IF(Voorraadlijst[[#This Row],[HOEV]]<=Voorraadlijst[[#This Row],[BIJBESTELHOEV]],1,0),0)","v":1}]
[null,"BM87684","Artikel 7","T349",{"$f":"IFERROR(VLOOKUP(Voorraadlijst[[#This Row],[OPSLAGLOCATIENR]],OpslaglocatieOpzoeken[],3,FALSE),\"\")","v":"Rij 1, vak 2"},"Per stuk",10,5,10,{"$f":"Voorraadlijst[[#This Row],[HOEV]]*Voorraadlijst[[#This Row],[KOSTEN]]","v":100},{"$f":"IFERROR(IF(Voorraadlijst[[#This Row],[HOEV]]<=Voorraadlijst[[#This Row],[BIJBESTELHOEV]],1,0),0)","v":0}]
[null,"BH67655","Artikel 8","T5789",{"$f":"IFERROR(VLOOKUP(Voorraadlijst[[#This Row],[OPSLAGLOCATIENR]],OpslaglocatieOpzoeken[],3,FALSE),\"\")","v":"Rij 1, vak 1"},"Per stuk",19,10,3,{"$f":"Voorraadlijst[[#This Row],[HOEV]]*Voorraadlijst[[#This Row],[KOSTEN]]","v":57},{"$f":"IFERROR(IF(Voorraadlijst[[#This Row],[HOEV]]<=Voorraadlijst[[#This Row],[BIJBESTELHOEV]],1,0),0)","v":0}]
[null,"WT98768","Artikel 9","T9875",{"$f":"IFERROR(VLOOKUP(Voorraadlijst[[#This Row],[OPSLAGLOCATIENR]],OpslaglocatieOpzoeken[],3,FALSE),\"\")","v":"Rij 2, vak 2"},"Pakket (5 stuks)",20,30,14,{"$f":"Voorraadlijst[[#This Row],[HOEV]]*Voorraadlijst[[#This Row],[KOSTEN]]","v":280},{"$f":"IFERROR(IF(Voorraadlijst[[#This Row],[HOEV]]<=Voorraadlijst[[#This Row],[BIJBESTELHOEV]],1,0),0)","v":1}]
[null,"TS3456","Artikel 10","T349",{"$f":"IFERROR(VLOOKUP(Voorraadlijst[[#This Row],[OPSLAGLOCATIENR]],OpslaglocatieOpzoeken[],3,FALSE),\"\")","v":"Rij 1, vak 2"},"Per stuk",15,8,60,{"$f":"Voorraadlijst[[#This Row],[HOEV]]*Voorraadlijst[[#This Row],[KOSTEN]]","v":900},{"$f":"IFERROR(IF(Voorraadlijst[[#This Row],[HOEV]]<=Voorraadlijst[[#This Row],[BIJBESTELHOEV]],1,0),0)","v":0}]
[null,"WDG123","Artikel 11","T349",{"$f":"IFERROR(VLOOKUP(Voorraadlijst[[#This Row],[OPSLAGLOCATIENR]],OpslaglocatieOpzoeken[],3,FALSE),\"\")","v":"Rij 1, vak 2"},"Per stuk",25,15,8,{"$f":"Voorraadlijst[[#This Row],[HOEV]]*Voorraadlijst[[#This Row],[KOSTEN]]","v":200},{"$f":"IFERROR(IF(Voorraadlijst[[#This Row],[HOEV]]<=Voorraadlijst[[#This Row],[BIJBESTELHOEV]],1,0),0)","v":0}]

{"sheet":"Voorraadpickoverzicht","index":1,"n_rows":9,"n_cols":9,"rows_kept":9,"cut":false,"hidden":false,"merged":[]}
[null,"VOORRAADPICKOVERZICHT"]
[null,null,"VOORRAADLIJST"]
[]
[null,"ORDERNUMMER","SKU","PICKHOEV","BESCHIKBARE HOEV","ARTIKELBESCHRIJVING","EENHEID","OPSLAGLOCATIENR","LOCATIE"]
[null,"TP001-1","SP7875",3,{"$f":"IFERROR(VLOOKUP(Voorraadpickoverzicht[SKU],Voorraadlijst[],6,FALSE),\"\")","v":20},{"$f":"IFERROR(VLOOKUP(Voorraadpickoverzicht[SKU],Voorraadlijst[],2,FALSE),\"\")","v":"Artikel 1"},{"$f":"IFERROR(VLOOKUP(Voorraadpickoverzicht[SKU],Voorraadlijst[],5,FALSE),\"\")","v":"Per stuk"},{"$f":"IFERROR(VLOOKUP(Voorraadpickoverzicht[SKU],Voorraadlijst[],3,FALSE),\"\")","v":"T345"},{"$f":"IFERROR(VLOOKUP(Voorraadpickoverzicht[SKU],Voorraadlijst[],4,FALSE),\"\")","v":"Rij 2, vak 1"}]
[null,"TP001-1","YE98767",1,{"$f":"IFERROR(VLOOKUP(Voorraadpickoverzicht[SKU],Voorraadlijst[],6,FALSE),\"\")","v":40},{"$f":"IFERROR(VLOOKUP(Voorraadpickoverzicht[SKU],Voorraadlijst[],2,FALSE),\"\")","v":"Artikel 4"},{"$f":"IFERROR(VLOOKUP(Voorraadpickoverzicht[SKU],Voorraadlijst[],5,FALSE),\"\")","v":"Doos (10 stuks)"},{"$f":"IFERROR(VLOOKUP(Voorraadpickoverzicht[SKU],Voorraadlijst[],3,FALSE),\"\")","v":"T9876"},{"$f":"IFERROR(VLOOKUP(Voorraadpickoverzicht[SKU],Voorraadlijst[],4,FALSE),\"\")","v":"Rij 3, vak 2"}]
[null,"TP001-1","BM87684",2,{"$f":"IFERROR(VLOOKUP(Voorraadpickoverzicht[SKU],Voorraadlijst[],6,FALSE),\"\")","v":10},{"$f":"IFERROR(VLOOKUP(Voorraadpickoverzicht[SKU],Voorraadlijst[],2,FALSE),\"\")","v":"Artikel 7"},{"$f":"IFERROR(VLOOKUP(Voorraadpickoverzicht[SKU],Voorraadlijst[],5,FALSE),\"\")","v":"Per stuk"},{"$f":"IFERROR(VLOOKUP(Voorraadpickoverzicht[SKU],Voorraadlijst[],3,FALSE),\"\")","v":"T349"},{"$f":"IFERROR(VLOOKUP(Voorraadpickoverzicht[SKU],Voorraadlijst[],4,FALSE),\"\")","v":"Rij 1, vak 2"}]
[null,"TP001-1","TS3456",6,{"$f":"IFERROR(VLOOKUP(Voorraadpickoverzicht[SKU],Voorraadlijst[],6,FALSE),\"\")","v":15},{"$f":"IFERROR(VLOOKUP(Voorraadpickoverzicht[SKU],Voorraadlijst[],2,FALSE),\"\")","v":"Artikel 10"},{"$f":"IFERROR(VLOOKUP(Voorraadpickoverzicht[SKU],Voorraadlijst[],5,FALSE),\"\")","v":"Per stuk"},{"$f":"IFERROR(VLOOKUP(Voorraadpickoverzicht[SKU],Voorraadlijst[],3,FALSE),\"\")","v":"T349"},{"$f":"IFERROR(VLOOKUP(Voorraadpickoverzicht[SKU],Voorraadlijst[],4,FALSE),\"\")","v":"Rij 1, vak 2"}]
[null,"TP001-1","MK676554",3,{"$f":"IFERROR(VLOOKUP(Voorraadpickoverzicht[SKU],Voorraadlijst[],6,FALSE),\"\")","v":10},{"$f":"IFERROR(VLOOKUP(Voorraadpickoverzicht[SKU],Voorraadlijst[],2,FALSE),\"\")","v":"Artikel 3"},{"$f":"IFERROR(VLOOKUP(Voorraadpickoverzicht[SKU],Voorraadlijst[],5,FALSE),\"\")","v":"Per stuk"},{"$f":"IFERROR(VLOOKUP(Voorraadpickoverzicht[SKU],Voorraadlijst[],3,FALSE),\"\")","v":"T5789"},{"$f":"IFERROR(VLOOKUP(Voorraadpickoverzicht[SKU],Voorraadlijst[],4,FALSE),\"\")","v":"Rij 1, vak 1"}]

{"sheet":"Opslaglocatie opzoeken","index":2,"n_rows":11,"n_cols":7,"rows_kept":11,"cut":false,"hidden":false,"merged":[]}
[null,"OPSLAGLOCATIE OPZOEKEN"]
[null,"VOORRAADLIJST"]
[]
[null,"OPSLAGLOCATIENR","BESCHRIJVING","LOCATIE","BREEDTE","HOOGTE","LENGTE"]
[null,"T345","Grote opslaglocatie","Rij 2, vak 1",50,10,10]
[null,"T5789","Kleine opslaglocatie","Rij 1, vak 1",25,5,5]
[null,"T9876","Grote opslaglocatie","Rij 3, vak 2",50,10,10]
[null,"T098","Middelgrote opslaglocatie","Rij 3, vak 1",30,7,10]
[null,"T349","Kleine opslaglocatie","Rij 1, vak 2",25,5,5]
[null,"T5789","Grote opslaglocatie","Rij 4, vak 5",50,10,10]
[null,"T9875","Grote opslaglocatie","Rij 2, vak 2",50,10,10]